fUSD/lending_fUSD_20250105
["ID","MTS","AMOUNT","RATE_DAILY","PERIOD"]
[347791230,1736110254944,-500.0,0.00011094,2]
[347791231,1736110254954,-500.0,0.00011094,2]
[347791232,1736110254963,-1074.02,0.00011094,2]
[347791233,1736110254973,-500.0,0.00011094,2]
[347791234,1736110254983,-500.0,0.00011094,2]
[347791235,1736110254993,-500.0,0.00011094,2]
[347791236,1736110255005,-1104.02,0.00011094,2]
[347791237,1736110255015,-500.0,0.00011094,2]
[347791238,1736110255025,-500.0,0.00011094,2]
[347791239,1736110255035,-648.19,0.00011094,2]
[347791240,1736110255045,-500.0,0.00011094,2]
[347791241,1736110255055,-500.0,0.00011094,2]
[347791242,1736110255066,-514.92,0.00011094,2]
[347791243,1736110255076,-500.0,0.00011094,2]
[347791244,1736110255086,-1003.35,0.00011094,2]
[347791245,1736110255095,-500.0,0.00011094,2]
[347791246,1736110255105,-500.0,0.00011094,2]
[347791247,1736110255115,-861.84,0.00011094,2]
[347791248,1736110255170,-1819.314744,0.00011094,2]
[347791249,1736110255181,-535.24,0.00011094,2]
[347791250,1736110255190,-500.0,0.00011094,2]
[347791251,1736110255200,-585.79,0.00011094,2]
[347791252,1736110255209,-560.7,0.00011094,2]
[347791253,1736110255219,-500.0,0.00011094,2]
[347791254,1736110255228,-500.0,0.00011094,2]
[347791255,1736110255237,-1026.66,0.00011094,2]
[347791256,1736110255247,-1438.649122,0.00011094,2]
[347791257,1736110255257,-500.0,0.00011094,2]
[347791258,1736110255266,-513.82970516,0.00011094,2]
[347791259,1736110255276,-500.0,0.00011094,2]
[347791260,1736110255286,-1226.24,0.00011094,2]
[347791261,1736110255297,-1147.93,0.00011094,2]
[347791262,1736110255306,-500.0,0.00011094,2]
[347791263,1736110255316,-730.32,0.00011094,2]
[347791264,1736110255325,-500.0,0.00011094,2]
[347791265,1736110255334,-675.39,0.00011094,2]
[347791266,1736110255344,-500.0,0.00011094,2]
[347791267,1736110255353,-500.0,0.00011094,2]
[347791268,1736110255363,-820.25,0.00011094,2]
[347791269,1736110255372,-500.0,0.00011094,2]
[347791270,1736110255381,-500.0,0.00011094,2]
[347791271,1736110255391,-500.0,0.00011094,2]
[347791272,1736110255402,-1404.86,0.00011094,2]
[347791273,1736110255411,-500.0,0.00011094,2]
[347791274,1736110255421,-500.0,0.00011094,2]
[347791275,1736110255430,-566.59,0.00011094,2]
[347791276,1736110255439,-500.0,0.00011094,2]
[347791277,1736110255448,-500.0,0.00011094,2]
[347791278,1736110255458,-500.0,0.00011094,2]
[347791279,1736110255467,-500.0,0.00011094,2]
[347791280,1736110255475,-1734.63,0.00011094,2]
[347791281,1736110255484,-500.0,0.00011095,2]
[347791282,1736110255493,-500.0,0.00011095,2]
[347791283,1736110255502,-500.0,0.00011095,2]
[347791284,1736110255514,-500.0,0.00011095,2]
[347791285,1736110255523,-500.0,0.00011095,2]
[347791286,1736110255532,-500.0,0.00011095,2]
[347791287,1736110255541,-1075.05,0.00011095,2]
[347791288,1736110255550,-500.0,0.00011095,2]
[347791289,1736110255559,-500.0,0.00011095,2]
[347791290,1736110255569,-495.66,0.00011095,2]
[347791291,1736110255578,-501.44,0.00011095,2]
[347791292,1736110255587,-500.0,0.00011095,2]
[347791293,1736110255597,-442.50870023,0.00011095,2]
[347791294,1736110255607,-500.0,0.00011095,2]
[347791295,1736110255618,-500.0,0.00011095,2]
[347791296,1736110255627,-500.0,0.00011095,2]
[347791297,1736110255636,-500.0,0.00011095,2]
[347791298,1736110255645,-500.0,0.00011095,2]
[347791299,1736110255654,-500.0,0.00011095,2]
[347791300,1736110255662,-500.0,0.00011095,2]
[347791301,1736110255671,-500.0,0.00011095,2]
[347791302,1736110255682,-626.17956528,0.00011095,2]
[347791303,1736110255691,-500.0,0.00011095,2]
[347791304,1736110255700,-500.0,0.00011095,2]
[347791305,1736110255710,-500.0,0.00011095,2]
[347791306,1736110255719,-500.0,0.00011095,2]
[347791307,1736110255728,-500.0,0.00011095,2]
[347791308,1736110255737,-500.0,0.00011095,2]
[347791309,1736110255746,-500.0,0.00011095,2]
[347791310,1736110255756,-375.27,0.00011095,2]
[347791311,1736110255765,-500.0,0.00011095,2]
[347791312,1736110255774,-500.0,0.00011095,2]
[347791313,1736110255783,-365.46,0.00011095,2]
[347791314,1736110255792,-500.0,0.00011095,2]
[347791315,1736110255801,-500.0,0.00011095,2]
[347791316,1736110255810,-500.0,0.00011095,2]
[347791317,1736110255820,-500.0,0.00011095,2]
[347791318,1736110255829,-500.0,0.00011095,2]
[347791319,1736110255838,-382.78621047,0.00011095,2]
[347791320,1736110255847,-500.0,0.00011095,2]
[347791321,1736110255856,-500.0,0.00011095,2]
[347791322,1736110255867,-500.0,0.00011095,2]
[347791323,1736110255876,-583.36,0.00011095,2]
[347791324,1736110255886,-500.0,0.00011095,2]
[347791325,1736110255895,-500.0,0.00011095,2]
[347791326,1736110255906,-500.0,0.00011095,2]
[347791327,1736110255914,-500.0,0.00011095,2]
[347791328,1736110255925,-500.0,0.00011095,2]
[347791329,1736110255933,-640.68,0.00011095,2]
[347791330,1736110255943,-500.0,0.00011095,2]
[347791331,1736110255952,-500.0,0.00011095,2]
[347791332,1736110255962,-500.0,0.00011095,2]
[347791333,1736110255972,-500.0,0.00011095,2]
[347791334,1736110255981,-500.0,0.00011095,2]
[347791335,1736110255991,-500.0,0.00011095,2]
[347791336,1736110255999,-179.90459001,0.00011095,2]
[347791337,1736110256252,-320.09540999,0.00011095,2]
[347791338,1736110256263,-500.0,0.00011095,2]
[347791339,1736110256273,-241.7,0.00011095,2]
[347791340,1736110256283,-500.0,0.00011095,2]
[347791341,1736110256292,-500.0,0.00011095,2]
[347791342,1736110256301,-128.20459001,0.00011095,2]
[347791343,1736110256313,-353.00935881,0.00011095,2]
[347791344,1736110256322,-500.0,0.00011095,2]
[347791345,1736110256331,-500.0,0.00011095,2]
[347791346,1736110256340,-500.0,0.00011095,2]
[347791347,1736110256350,-500.0,0.00011095,2]
[347791348,1736110256359,-500.0,0.00011095,2]
[347791349,1736110256369,-500.0,0.00011095,2]
[347791350,1736110256378,-387.9,0.00011095,2]
[347791351,1736110256387,-500.0,0.00011095,2]
[347791352,1736110256396,-500.0,0.00011095,2]
[347791353,1736110256406,-500.0,0.00011095,2]
[347791354,1736110256415,-500.0,0.00011095,2]
[347791355,1736110256424,-500.0,0.00011095,2]
[347791356,1736110256432,-500.0,0.00011095,2]
[347791357,1736110256441,-500.0,0.00011095,2]
[347791358,1736110256450,-500.0,0.00011095,2]
[347791359,1736110256459,-500.0,0.00011095,2]
[347791360,1736110256469,-500.0,0.00011095,2]
[347791361,1736110256478,-500.0,0.00011095,2]
[347791362,1736110256487,-500.0,0.00011095,2]
[347791363,1736110256497,-500.0,0.00011095,2]
[347791364,1736110256507,-500.0,0.00011095,2]
[347791365,1736110256516,-818.39,0.00011095,2]
[347791366,1736110256525,-500.0,0.00011095,2]
[347791367,1736110256534,-500.0,0.00011095,2]
[347791368,1736110256543,-627.79,0.00011095,2]
[347791369,1736110256552,-500.0,0.00011095,2]
[347791370,1736110256561,-645.2,0.00011095,2]
[347791371,1736110256571,-500.0,0.00011095,2]
[347791372,1736110256581,-500.0,0.00011095,2]
[347791373,1736110256590,-500.0,0.00011095,2]
[347791374,1736110256600,-500.0,0.00011095,2]
[347791375,1736110256609,-500.0,0.00011095,2]
[347791376,1736110256618,-500.0,0.00011095,2]
[347791377,1736110256628,-500.0,0.00011095,2]
[347791378,1736110256637,-500.0,0.00011095,2]
[347791379,1736110256646,-500.0,0.00011095,2]
[347791380,1736110256656,-500.0,0.00011095,2]
[347791381,1736110256665,-500.0,0.00011095,2]
[347791382,1736110256674,-500.0,0.00011095,2]
[347791383,1736110256683,-500.0,0.00011095,2]
[347791384,1736110256692,-500.0,0.00011095,2]
[347791385,1736110256701,-500.0,0.00011095,2]
[347791386,1736110256711,-500.0,0.00011095,2]
[347791387,1736110256720,-500.0,0.00011095,2]
[347791388,1736110256729,-500.0,0.00011095,2]
[347791389,1736110256738,-1007.81,0.00011095,2]
[347791390,1736110256747,-500.0,0.00011095,2]
[347791391,1736110256757,-500.0,0.00011095,2]
[347791392,1736110256766,-500.0,0.00011095,2]
[347791393,1736110256775,-500.0,0.00011095,2]
[347791394,1736110256784,-500.0,0.00011095,2]
[347791395,1736110256794,-663.32,0.00011095,2]
[347791396,1736110256803,-500.0,0.00011095,2]
[347791397,1736110256812,-368.09480528,0.00011095,2]
[347791398,1736110256832,-500.0,9.999e-05,2]
[347791399,1736110256842,-131.90519472,0.00011095,2]
[347791400,1736110256851,-500.0,0.00011095,2]
[347791401,1736110256860,-500.0,0.00011095,2]
[347791402,1736110256869,-2310.44,0.00011095,2]
[347791403,1736110256878,-500.0,0.00011095,2]
[347791404,1736110256887,-491.60429228,0.00011095,2]
[347791405,1736110256898,-8.39570772,0.00011095,2]
[347791406,1736110256907,-161.05129517,0.00011105,2]
[347791407,1736110256916,-187.54004267,0.00011152,2]
[347791408,1736110256927,-266.06591,0.00011152,2]
[347791409,1736110256938,-1479.662167,0.00011152,2]
[347791410,1736110256949,-2198.98756785,0.00011152,2]
[347791411,1736110256960,-3336.12947626,0.00011152,2]
[347791412,1736110256969,-12959.75894792,0.00011156,2]
[347791413,1736110256991,-500.0,0.00010272,2]
[347791414,1736110257000,-307.25642407,0.00011156,2]
[347791415,1736110257184,-500.0,9.998e-05,2]
[347791416,1736110257194,-500.0,0.00010272,2]
[347791417,1736110257203,-500.0,0.00010272,2]
[347791418,1736110257213,-500.0,0.00010273,2]
[347791419,1736110257222,-500.0,0.00010546,2]
[347791420,1736110257231,-500.0,0.0001082,2]
[347791421,1736110257240,-61379.4023153,0.00011156,2]
[347791422,1736110257250,-429.58022011,0.00011164,2]
[347791423,1736110257260,-500.0,0.00011181,2]
[347791424,1736110257269,-500.0,0.00011181,2]
[347791425,1736110257279,-500.0,0.00011181,2]
[347791426,1736110257288,-556.03146041,0.00011181,2]
[347791427,1736110257298,-500.0,0.00011181,2]
[347791428,1736110257307,-500.0,0.00011181,2]
[347791429,1736110257316,-500.0,0.00011181,2]
[347791430,1736110257326,-500.0,0.00011181,2]
[347791431,1736110257335,-500.0,0.00011181,2]
[347791432,1736110257345,-500.0,0.00011181,2]
[347791433,1736110257354,-500.0,0.00011181,2]
[347791434,1736110257363,-500.0,0.00011181,2]
[347791435,1736110257373,-464.12,0.00011181,2]
[347791436,1736110257383,-500.0,0.00011181,2]
[347791437,1736110257392,-500.0,0.00011181,2]
[347791438,1736110257401,-500.0,0.00011181,2]
[347791439,1736110257410,-500.0,0.00011181,2]
[347791440,1736110257419,-500.0,0.00011181,2]
[347791441,1736110257430,-500.0,0.00011181,2]
[347791442,1736110257440,-500.0,0.00011181,2]
[347791443,1736110257449,-500.0,0.00011181,2]
[347791444,1736110257459,-500.0,0.00011181,2]
[347791445,1736110257469,-198.79,0.00011214,2]
[347791446,1736110257479,-150.0,0.00011222,2]
[347791447,1736110257489,-499.0,0.00011233,2]
[347791448,1736110257500,-500.0,0.00011264,2]
[347791449,1736110257511,-500.0,0.00011265,2]
[347791450,1736110257520,-811.42,0.00011266,2]
[347791451,1736110257530,-1283.53,0.00011266,2]
[347791452,1736110257540,-778.09,0.00011266,2]
[347791453,1736110257549,-500.0,0.00011266,2]
[347791454,1736110257558,-500.0,0.00011266,2]
[347791455,1736110257567,-881.37,0.00011266,2]
[347791456,1736110257576,-500.0,0.00011266,2]
[347791457,1736110257585,-1046.17,0.00011266,2]
[347791458,1736110257595,-500.0,0.00011266,2]
[347791459,1736110257602,-573.11,0.00011266,2]
[347791460,1736110257612,-500.0,0.00011266,2]
[347791461,1736110257621,-612.62,0.00011266,2]
[347791462,1736110257632,-500.0,0.00011266,2]
[347791463,1736110257644,-500.0,0.00011266,2]
[347791464,1736110257654,-500.0,0.00011266,2]
[347791465,1736110257663,-500.0,0.00011266,2]
[347791466,1736110257672,-1480.57,0.00011266,2]
[347791467,1736110257686,-500.0,0.00011266,2]
[347791468,1736110257696,-500.0,0.00011266,2]
[347791469,1736110257706,-500.0,0.00011266,2]
[347791470,1736110257717,-1099.33,0.00011266,2]
[347791471,1736110257728,-500.0,0.00011266,2]
[347791472,1736110257738,-500.0,0.00011266,2]
[347791473,1736110257747,-500.0,0.00011267,2]
[347791474,1736110257759,-507.57,0.00011267,2]
[347791475,1736110257769,-601.26260402,0.00011267,2]
[347791476,1736110257782,-398.73739598,0.00011267,2]
[347791477,1736110257791,-500.0,0.00011267,2]
[347791478,1736110257801,-500.0,0.00011267,2]
[347791479,1736110257810,-500.0,0.00011267,2]
[347791480,1736110257820,-1000.0,0.00011276,2]
[347791481,1736110257830,-150.0,0.00011281,2]
[347791482,1736110257840,-2707.22836008,0.00011286,2]
[347791483,1736110257852,-4761.1568037,0.00011286,2]
[347791484,1736110257862,-10006.61,0.0001129,2]
[347791485,1736110257872,-512.15,0.000113,2]
[347791486,1736110257881,-1000.0,0.000113,2]
[347791487,1736110257891,-1052.0,0.00011305,2]
[347791488,1736110257900,-500.0,0.00011306,2]
[347791489,1736110257909,-844.11,0.00011306,2]
[347791490,1736110257919,-633.18,0.00011306,2]
[347791491,1736110257928,-1017.38,0.00011306,2]
[347791492,1736110257938,-1235.47,0.00011306,2]
[347791493,1736110257947,-500.0,0.00011306,2]
[347791494,1736110257958,-639.69,0.00011306,2]
[347791495,1736110257968,-500.0,0.00011306,2]
[347791496,1736110257979,-500.0,0.00011306,2]
[347791497,1736110257988,-500.0,0.00011306,2]
[347791498,1736110257999,-150.0,0.00011334,2]
[347791499,1736110258008,-500.0,0.00011368,2]
[347791500,1736110258018,-500.0,0.00011368,2]
[347791501,1736110258027,-500.0,0.00011368,2]
[347791502,1736110258037,-549.49,0.00011368,2]
[347791503,1736110258047,-500.0,0.00011368,2]
[347791504,1736110258056,-500.0,0.00011368,2]
[347791505,1736110258066,-1074.02,0.00011368,2]
[347791506,1736110258076,-500.0,0.00011368,2]
[347791507,1736110258086,-500.0,0.00011368,2]
[347791508,1736110258097,-500.0,0.00011368,2]
[347791509,1736110258107,-1104.02,0.00011368,2]
[347791510,1736110258117,-249.16,0.00011368,2]
[347791511,1736110258127,-480.39496005,0.00011368,2]
[347791512,1736110258137,-648.19,0.00011368,2]
[347791513,1736110258147,-500.0,0.00011368,2]
[347791514,1736110258157,-500.0,0.00011368,2]
[347791515,1736110258167,-514.92,0.00011368,2]
[347791516,1736110258176,-500.0,0.00011368,2]
[347791517,1736110258187,-1003.35,0.00011368,2]
[347791518,1736110258197,-500.0,0.00011368,2]
[347791519,1736110258207,-500.0,0.00011368,2]
[347791520,1736110258216,-861.84,0.00011368,2]
[347791521,1736110258227,-1819.314744,0.00011368,2]
[347791522,1736110258237,-535.24,0.00011368,2]
[347791523,1736110258247,-500.0,0.00011368,2]
[347791524,1736110258258,-585.79,0.00011368,2]
[347791525,1736110258267,-560.7,0.00011368,2]
[347791526,1736110258276,-465.54111917,0.00011368,2]
[347791527,1736110258286,-500.0,0.00011368,2]
[347791528,1736110258296,-1026.66,0.00011368,2]
[347791529,1736110258306,-1438.649122,0.00011368,2]
[347791530,1736110258315,-500.0,0.00011368,2]
[347791531,1736110258325,-500.0,0.00011368,2]
[347791532,1736110258334,-1226.24,0.00011368,2]
[347791533,1736110258344,-1147.93,0.00011368,2]
[347791534,1736110258353,-500.0,0.00011368,2]
[347791535,1736110258364,-730.32,0.00011368,2]
[347791536,1736110258373,-675.39,0.00011368,2]
[347791537,1736110258383,-500.0,0.00011368,2]
[347791538,1736110258393,-500.0,0.00011368,2]
[347791539,1736110258406,-500.0,0.00011368,2]
[347791540,1736110258419,-820.25,0.00011368,2]
[347791541,1736110258431,-500.0,0.00011368,2]
[347791542,1736110258441,-500.0,0.00011368,2]
[347791543,1736110258451,-1404.86,0.00011368,2]
[347791544,1736110258460,-500.0,0.00011368,2]
[347791545,1736110258470,-500.0,0.00011368,2]
[347791546,1736110258480,-500.0,0.00011368,2]
[347791547,1736110258489,-566.59,0.00011368,2]
[347791548,1736110258499,-500.0,0.00011368,2]
[347791549,1736110258509,-500.0,0.00011368,2]
[347791550,1736110258519,-500.0,0.00011368,2]
[347791551,1736110258530,-1734.63,0.00011368,2]
[347791552,1736110258540,-500.0,0.00011369,2]
[347791553,1736110258549,-500.0,0.00011369,2]
[347791554,1736110258559,-1075.05,0.00011369,2]
[347791555,1736110258568,-501.44,0.00011369,2]
[347791556,1736110258580,-500.0,0.00011369,2]
[347791557,1736110258590,-500.0,0.00011369,2]
[347791558,1736110258599,-500.0,0.00011369,2]
[347791559,1736110258609,-500.0,0.00011369,2]
[347791560,1736110258618,-500.0,0.00011369,2]
[347791561,1736110258629,-335.24,0.00011369,2]
[347791562,1736110258642,-500.0,0.00011369,2]
[347791563,1736110258653,-500.0,0.00011369,2]
[347791564,1736110258663,-229.18331862,0.00011369,2]
[347791565,1736110258672,-613.41232545,0.00011369,2]
[347791566,1736110258684,-500.0,0.00011369,2]
[347791567,1736110258694,-500.0,0.00011369,2]
[347791568,1736110258703,-500.0,0.00011369,2]
[347791569,1736110258713,-500.0,0.00011369,2]
[347791570,1736110258722,-500.0,0.00011369,2]
[347791571,1736110258732,-465.40134077,0.00011369,2]
[347791572,1736110258741,-500.0,0.00011369,2]
[347791573,1736110258752,-607.48713749,0.00011369,2]
[347791574,1736110258762,-500.0,0.00011369,2]
[347791575,1736110258771,-500.0,0.00011369,2]
[347791576,1736110258781,-500.0,0.00011369,2]
[347791577,1736110258790,-500.0,0.00011369,2]
[347791578,1736110258800,-500.0,0.00011369,2]
[347791579,1736110258810,-583.36,0.00011369,2]
[347791580,1736110258819,-500.0,0.00011369,2]
[347791581,1736110258829,-500.0,0.00011369,2]
[347791582,1736110258838,-500.0,0.00011369,2]
[347791583,1736110258848,-500.0,0.00011369,2]
[347791584,1736110258858,-640.68,0.00011369,2]
[347791585,1736110258868,-500.0,0.00011369,2]
[347791586,1736110258877,-500.0,0.00011369,2]
[347791587,1736110258887,-500.0,0.00011369,2]
[347791588,1736110258896,-500.0,0.00011369,2]
[347791589,1736110258905,-500.0,0.00011369,2]
[347791590,1736110258915,-500.0,0.00011369,2]
[347791591,1736110258924,-500.0,0.00011369,2]
[347791592,1736110258934,-500.0,0.00011369,2]
[347791593,1736110258943,-500.0,0.00011369,2]
[347791594,1736110258953,-500.0,0.00011369,2]
[347791595,1736110258963,-500.0,0.00011369,2]
[347791596,1736110258972,-500.0,0.00011369,2]
[347791597,1736110258982,-247.53847709,0.00011369,2]
[347791598,1736110258991,-500.0,0.00011369,2]
[347791599,1736110259000,-500.0,0.00011369,2]
[347791600,1736110259011,-500.0,0.00011369,2]
[347791601,1736110259021,-500.0,0.00011369,2]
[347791602,1736110259031,-500.0,0.00011369,2]
[347791603,1736110259041,-500.0,0.00011369,2]
[347791604,1736110259052,-500.0,0.00011369,2]
[347791605,1736110259063,-500.0,0.00011369,2]
[347791606,1736110259074,-500.0,0.00011369,2]
[347791607,1736110259084,-500.0,0.00011369,2]
[347791608,1736110259095,-500.0,0.00011369,2]
[347791609,1736110259106,-500.0,0.00011369,2]
[347791610,1736110259118,-818.39,0.00011369,2]
[347791611,1736110259129,-451.22259638,0.00011369,2]
[347791612,1736110259139,-627.79,0.00011369,2]
[347791613,1736110259151,-500.0,0.00011369,2]
[347791614,1736110259162,-176.81401419,0.00011369,2]
[347791615,1736110259172,-500.0,0.00011369,2]
[347791616,1736110259182,-500.0,0.00011369,2]
[347791617,1736110259192,-500.0,0.00011369,2]
[347791618,1736110259202,-500.0,0.00011369,2]
[347791619,1736110259211,-500.0,0.00011369,2]
[347791620,1736110259221,-500.0,0.00011369,2]
[347791621,1736110259231,-500.0,0.00011369,2]
[347791622,1736110259242,-500.0,0.00011369,2]
[347791623,1736110259254,-500.0,0.00011369,2]
[347791624,1736110259264,-500.0,0.00011369,2]
[347791625,1736110259274,-500.0,0.00011369,2]
[347791626,1736110259284,-500.0,0.00011369,2]
[347791627,1736110259294,-500.0,0.00011369,2]
[347791628,1736110259303,-500.0,0.00011369,2]
[347791629,1736110259314,-500.0,0.00011369,2]
[347791630,1736110259324,-500.0,0.00011369,2]
[347791631,1736110259334,-500.0,0.00011369,2]
[347791632,1736110259344,-1007.81,0.00011369,2]
[347791633,1736110259354,-500.0,0.00011369,2]
[347791634,1736110259364,-500.0,0.00011369,2]
[347791635,1736110259374,-500.0,0.00011369,2]
[347791636,1736110259384,-663.32,0.00011369,2]
[347791637,1736110259395,-500.0,0.00011369,2]
[347791638,1736110259405,-500.0,0.00011369,2]
[347791639,1736110259415,-500.0,0.00011369,2]
[347791640,1736110259426,-500.0,0.00011369,2]
[347791641,1736110259436,-2310.44,0.00011369,2]
[347791642,1736110259446,-500.0,0.00011369,2]
[347791643,1736110259456,-150.0,0.00011397,2]
[347791644,1736110259466,-429.58022011,0.00011415,2]
[347791645,1736110259476,-7468.38516378,0.00011421,2]
[347791646,1736110259485,-2696.76004816,0.00011427,2]
[347791647,1736110259495,-500.0,0.00011455,2]
[347791648,1736110259504,-500.0,0.00011455,2]
[347791649,1736110259515,-500.0,0.00011455,2]
[347791650,1736110259525,-500.0,0.00011455,2]
[347791651,1736110259534,-500.0,0.00011455,2]
[347791652,1736110259544,-500.0,0.00011455,2]
[347791653,1736110259553,-500.0,0.00011455,2]
[347791654,1736110259563,-500.0,0.00011455,2]
[347791655,1736110259573,-500.0,0.00011455,2]
[347791656,1736110259583,-500.0,0.00011455,2]
[347791657,1736110259592,-500.0,0.00011455,2]
[347791658,1736110259602,-500.0,0.00011455,2]
[347791659,1736110259612,-500.0,0.00011455,2]
[347791660,1736110259622,-500.0,0.00011455,2]
[347791661,1736110259631,-500.0,0.00011455,2]
[347791662,1736110259642,-500.0,0.00011455,2]
[347791663,1736110259651,-500.0,0.00011455,2]
[347791664,1736110259661,-500.0,0.00011455,2]
[347791665,1736110259671,-500.0,0.00011455,2]
[347791666,1736110259680,-161.05129517,0.0001147,2]
[347791667,1736110259689,-499.0,0.00011507,2]
[347791668,1736110259699,-2751.0,0.00011507,2]
[347791669,1736110259708,-499.0,0.00011507,2]
[347791670,1736110259718,-1325.869,0.00011517,2]
[347791671,1736110259728,-2014.0,0.00011517,2]
[347791672,1736110259738,-150.0,0.00011517,2]
[347791673,1736110259747,-566.0,0.00011517,2]
[347791674,1736110259757,-634.0,0.00011517,2]
[347791675,1736110259769,-1860.0,0.00011517,2]
[347791676,1736110259779,-3775.0,0.00011517,2]
[347791677,1736110259789,-920.0,0.00011517,2]
[347791678,1736110259799,-819.0,0.00011517,2]
[347791679,1736110259809,-1258.0,0.00011517,2]
[347791680,1736110259819,-3722.0,0.00011517,2]
[347791681,1736110259828,-537.0,0.00011517,2]
[347791682,1736110259839,-3893.0,0.00011517,2]
[347791683,1736110259848,-9616.0,0.00011517,2]
[347791684,1736110259857,-1173.0,0.00011517,2]
[347791685,1736110259867,-158.916,0.00011517,2]
[347791686,1736110259877,-150.0,0.00011517,2]
[347791687,1736110259887,-150.0,0.00011522,2]
[347791688,1736110259896,-165.01,0.00011534,2]
[347791689,1736110259906,-900.0,0.00011538,2]
[347791690,1736110259916,-811.42,0.0001154,2]
[347791691,1736110259925,-1283.53,0.0001154,2]
[347791692,1736110259935,-778.09,0.0001154,2]
[347791693,1736110259945,-634.70467553,0.0001154,2]
[347791694,1736110259955,-500.0,0.0001154,2]
[347791695,1736110259965,-881.37,0.0001154,2]
[347791696,1736110259975,-500.0,0.0001154,2]
[347791697,1736110259985,-1046.17,0.0001154,2]
[347791698,1736110259994,-500.0,0.0001154,2]
[347791699,1736110260005,-7500.0,0.0001154,2]
[347791700,1736110260019,-573.11,0.0001154,2]
[347791701,1736110260029,-500.0,0.0001154,2]
[347791702,1736110260038,-612.62,0.0001154,2]
[347791703,1736110260048,-500.0,0.0001154,2]
[347791704,1736110260059,-500.0,0.0001154,2]
[347791705,1736110260070,-500.0,0.0001154,2]
[347791706,1736110260080,-500.0,0.0001154,2]
[347791707,1736110260323,-1480.57,0.0001154,2]
[347791708,1736110260334,-500.0,0.0001154,2]
[347791709,1736110260345,-500.0,0.0001154,2]
[347791710,1736110260354,-500.0,0.0001154,2]
[347791711,1736110260364,-500.0,0.0001154,2]
[347791712,1736110260374,-1099.33,0.0001154,2]
[347791713,1736110260384,-500.0,0.0001154,2]
[347791714,1736110260393,-500.0,0.00011541,2]
[347791715,1736110260404,-507.57,0.00011541,2]
[347791716,1736110260413,-1000.0,0.00011541,2]
[347791717,1736110260423,-500.0,0.00011541,2]
[347791718,1736110260433,-500.0,0.00011541,2]
[347791719,1736110260443,-500.0,0.00011541,2]
[347791720,1736110260453,-7468.38516378,0.00011555,2]
[347791721,1736110260463,-150.0,0.00011573,2]
[347791722,1736110260472,-500.0,0.0001158,2]
[347791723,1736110260481,-844.11,0.0001158,2]
[347791724,1736110260491,-633.18,0.0001158,2]
[347791725,1736110260500,-1017.38,0.0001158,2]
[347791726,1736110260509,-1235.47,0.0001158,2]
[347791727,1736110260521,-500.0,0.0001158,2]
[347791728,1736110260530,-500.0,0.0001158,2]
[347791729,1736110260540,-639.69,0.0001158,2]